Cogmind - Beta 15 @@@ ROGUE MODE // 2025.10.20 @ 20:14:46 Player: Kappa Result: Self-destructed Performance ------------- Evolutions (3) 1500 Regions Visited (4) 800 Robots Destroyed (28) 140 Value Destroyed (1115) 1115 Prototype IDs (3) 60 Alien Tech Used (0) 0 Bonus (0) 0 TOTAL SCORE: 3615 Bonus ------- None Cogmind --------- Core Integrity 600/700 Matter 296/300 Energy 144/150 System Corruption 2% Temperature Cool (0) Movement Hovering (180) Ox2 Location -7/Factory Parts ------- > --- POWER (2) -------- Micro Nuclear Core > --- PROPULSION (4) --- Hover Unit > --- UTILITY (5) ------ Improved Heat Sink Visual Processing Unit Targeting Computer Utility Shielding Shield Generator > --- WEAPON (2) ------- Heavy Particle Gun > --- INVENTORY (5) ---- Improved Sensor Array Relay Coupler [NC] (16) Heavy Particle Cannon Gauss Rifle Assault Cannon Peak State ------------ > --- POWER ------------ Light Nuclear Core Improved Deuterium Engine > --- PROPULSION ------- Hover Unit Hover Unit Hover Unit Improved Hover Unit > --- UTILITY ---------- Heat Sink Visual Processing Unit Targeting Computer Utility Shielding Shield Generator > --- WEAPON ----------- Heavy Particle Gun Gauss Rifle > --- INVENTORY -------- Improved Sensor Array Relay Coupler [NC] Pulse Rifle Heavy Particle Cannon Assault Cannon [Rating: 28] Favorites ----------- Power Light Nuclear Core Engine Ion Engine Power Core Light Nuclear Core Propulsion Hover Unit Treads Light Treads Hover Unit Hover Unit Utility Targeting Computer Device Shield Generator Storage Small Storage Unit Processor Targeting Computer Protection Utility Shielding Weapon Heavy Particle Gun Energy Gun Heavy Particle Gun Energy Cannon Beam Cannon Ballistic Gun Light Assault Rifle Ballistic Cannon Assault Cannon Launcher Heavy Rocket Launcher Build | -11 -10 -9 -8 -7 ------- Run | Yrd Mat Mat Mat Fac Slots Evolved 6 | . . 2 2 2 Power 1 | . . . . 1 Propulsion 2 | . . . 1 1 Utility 3 | . . 2 1 . Weapon . | . . . . . Parts Attached 38 | 6 8 8 9 7 Power 7 | 1 1 2 1 2 Engine 5 | 1 1 2 . 1 Core 2 | . . . 1 1 Reactor . | . . . . . Propulsion 8 | 2 2 2 1 1 Treads 2 | 2 . . . . Leg . | . . . . . Wheel . | . . . . . Hover 6 | . 2 2 1 1 Flight . | . . . . . Utility 10 | 1 2 3 3 1 Device 5 | . 1 2 1 1 Storage 1 | 1 . . . . Processor 2 | . 1 . 1 . Hackware . | . . . . . Protection 2 | . . 1 1 . Artifact . | . . . . . Weapon 13 | 2 3 1 4 3 Energy Gun 3 | 1 . . 1 1 Energy Cannon 3 | . 2 . 1 . Ballistic Gun 3 | 1 1 . . 1 Ballistic Cannon 3 | . . 1 2 . Launcher 1 | . . . . 1 Special Weapon . | . . . . . Impact Weapon . | . . . . . Slashing Weapon . | . . . . . Piercing Weapon . | . . . . . Special Melee Weapon . | . . . . . Unidentified Prototypes 1 | . . . . 1 Parts Lost 8 | . . 2 . 6 Power 2 | . . . . 2 Propulsion 3 | . . . . 3 Utility 1 | . . 1 . . Weapon 2 | . . 1 . 1 Highest Loss Streak 2 | . . 1 . 2 To Critical Strikes . | . . . . . Average Backups 5 | . 7 4 3 4 Power . | . 2 . . . Propulsion . | . . 1 1 . Utility 2 | . 2 2 1 2 Weapon 1 | . 1 . . 2 Tool/Special . | . . . . . Unused Backups 10 | . 6 2 . 2 Power 2 | . 1 1 . . Propulsion 1 | . . 1 . . Utility 6 | . 4 . . 2 Weapon 1 | . 1 . . . Tool/Special . | . . . . . Average Slot Usage (%) 94 | . 99 92 98 90 Engine 9 | . 14 11 5 6 Core 3 | . . . 3 6 Treads 6 | . 21 . . . Hover 18 | . 7 22 27 22 Device 11 | . 1 20 18 15 Storage 3 | . 12 . . . Processor 14 | . 13 11 17 15 Protection 5 | . . 11 9 7 Energy Gun 10 | . 11 4 1 13 Energy Cannon 5 | . 10 11 5 . Ballistic Gun 1 | . 5 . . . Ballistic Cannon 1 | . . 1 10 . Peak Build Rating 28 | 6 9 12 19 28 Average Rating 16 | 3 7 11 15 24 On Entrance 8 | . 6 8 9 19 Naked Turns . | . . . . . Heaviest Build 29 | 13 15 14 20 29 Greatest Support 40 | 40 40 12 18 25 Greatest Overweight (x) 4 | . 4 1 1 2 Average Overweight (x) . | . . . . . Largest Inventory Capacity 8 | 8 8 8 5 5 Average Capacity 5 | 7 7 5 5 5 Most Carried 8 | 2 8 7 5 5 Average Carried 5 | . 7 4 3 4 Final Capacity 8 | 8 8 5 5 5 Final Carried 8 | . 8 5 5 5 Class Distribution -------------------- 100% | Mutant Dominant Class ---------------- Mutant | -10/Materials Mutant | -9/Materials Mutant | -8/Materials Mutant | -7/Factory Resources | -11 -10 -9 -8 -7 ----------- Run | Yrd Mat Mat Mat Fac Matter Collected 926 | 209 178 124 95 320 Remotely . | . . . . . Salvage Created 1032 | . 256 236 67 473 Parts 56 | . 21 15 2 18 Haulers Intercepted . | . . . . . Recyclers Shooed 1 | . 1 . . . Parts Field Recycled . | . . . . . Retrieved Matter . | . . . . . Parts Self-Destructed . | . . . . . Prevented . | . . . . . Kills | -11 -10 -9 -8 -7 ------- Run | Yrd Mat Mat Mat Fac Combat Hostiles Destroyed 24 | . 7 6 2 9 Guns 6 | . 1 1 . 4 Cannons 13 | . 6 5 2 . AOE 4 | . . . . 4 Classes Destroyed 10 | . 3 2 . 5 Worker 1 | . . . . 1 Builder 1 | . 1 . . . Recycler 1 | . . . . 1 Watcher 1 | . . . . 1 Swarmer 5 | . 3 2 . . Grunt 11 | . 4 1 1 5 Brawler 1 | . . 1 . . Sentry 4 | . . 2 1 1 Hunter 1 | . . . . 1 Programmer 2 | . . . . 2 Best Kill Streak 5 | . 3 3 1 5 Combat Bots Only 4 | . 3 3 1 4 Max Kills in Single Turn 2 | . 1 1 1 2 Gunslinging . | . . . . . Exploded 2 | . . . . 2 Melee . | . . . . . Uniques/NPCs Destroyed . | . . . . . Combat | -11 -10 -9 -8 -7 -------- Run | Yrd Mat Mat Mat Fac Hostile Shots Fired 180 | . 18 30 15 117 Missed 56 | . 5 5 7 39 Hits 124 | . 13 25 8 78 Melee 1 | . . 1 . . Projectile 123 | . 13 24 8 78 Critical Strikes 5 | . . 1 2 2 Actively Blocked 2 | . . 1 . 1 Damage Taken 1076 | . 173 260 91 552 Core 215 | . 33 60 22 100 Absorbed by Shields 337 | . . 79 30 228 Redirected to Shielding 33 | . . 19 . 14 Core Remaining (%) 91 | 100 86 85 96 . Volleys Fired 112 | . 48 19 16 29 Largest 2 | . 2 2 2 2 Hottest 138 | . 100 100 138 118 Shots Fired 191 | . 72 32 29 58 Gun 99 | . 35 8 3 53 Cannon 89 | . 37 24 26 2 Launcher 3 | . . . . 3 Special . | . . . . . Kinetic 37 | . 11 5 18 3 Thermal 119 | . 37 19 11 52 Explosive 3 | . . . . 3 Electromagnetic 32 | . 24 8 . . Robot Hit Streak 12 | . 12 7 6 11 Robot Miss Streak 2 | . 2 2 2 2 Penetration Max . | . . . . . Secondary Targets . | . . . . . Shots Hit Robots 95 | . 22 20 16 37 Core Hits 43 | . 10 9 4 20 Critical Kills . | . . . . . Critical Parts Destroyed . | . . . . . Critical Strikes 4 | . . . 1 3 Burn 2 | . . . . 2 Blast 2 | . . . 1 1 Melee Attacks . | . . . . . Impact . | . . . . . Slashing . | . . . . . Piercing . | . . . . . Sneak Attacks . | . . . . . Combat Hostiles . | . . . . . Follow-up Attacks . | . . . . . Damage Inflicted 1933 | . 315 316 287 1015 Guns 885 | . 142 57 . 686 Cannons 739 | . 173 259 287 20 Explosions 304 | . . . . 304 Melee . | . . . . . Ramming 5 | . . . . 5 Kinetic 316 | . 10 49 216 41 Thermal 1119 | . 173 210 71 665 Explosive 304 | . . . . 304 Electromagnetic 189 | . 132 57 . . Impact . | . . . . . Slashing . | . . . . . Piercing . | . . . . . Highest Corruption 4 | . 4 . . 2 Average Corruption 1 | . 3 . . 1 Corruption Purged . | . . . . . Corruption Blocked . | . . . . . Effects 14 | . 4 . . 10 Message Errors 6 | . 2 . . 4 Matter Fused 2 | . 1 . . 1 Heat Flow Errors 2 | . . . . 2 Energy Discharges 3 | . 1 . . 2 Alerts 1 | . . . . 1 Overload Shots . | . . . . . Overflow Damage . | . . . . . Projectiles . | . . . . . Explosions . | . . . . . Melee . | . . . . . Knockbacks . | . . . . . Impact . | . . . . . Kinetic . | . . . . . Secondary . | . . . . . Self-Inflicted Damage 46 | . 44 . . 2 Shots 1 | . 1 . . . Rammed 1 | . . . . 1 Targets Rammed 1 | . . . . 1 Kicked . | . . . . . Crushed . | . . . . . Highest Temperature 260 | . 260 54 110 240 Average Temperature 67 | . 84 15 35 62 Received Heat Transfer 291 | . 30 74 71 116 Effects 2 | . 2 . . . Interference 2 | . 2 . . . Siege Activations . | . . . . . Martial Activations . | . . . . . Shielding Activations . | . . . . . Robots Disrupted . | . . . . . Combat Hostiles . | . . . . . Robots Corrupted . | . . . . . Combat Hostiles . | . . . . . Parts Fried . | . . . . . Impact Corruptions . | . . . . . Robots Melted 1 | . . . . 1 Combat Hostiles 1 | . . . . 1 Parts Melted 1 | . . . . 1 Heat Transferred 2368 | . 370 444 148 1406 Parts Sabotaged . | . . . . . Parts Stolen . | . . . . . Parts Stripped . | . . . . . Power Chain Reactions 1 | . 1 . . . Alert | -11 -10 -9 -8 -7 ------- Run | Yrd Mat Mat Mat Fac Maximum Alert Level 1 | . . . . 1 Low Security (%) 93 | 100 100 100 100 84 Level 1 6 | . . . . 15 Level 2 . | . . . . . Level 3 . | . . . . . Level 4 . | . . . . . Level 5 . | . . . . . High Security . | . . . . . Max Security . | . . . . . Peak Influence 252 | . 130 120 170 252 Initial 77 | . . 13 25 77 Average 70 | . 42 47 22 112 Influence Increases 1126 | . 215 194 263 454 Destroy 0b10 Robot/C 480 | . 140 120 40 180 Destroy 0b10 Robot/NC 20 | . 5 . . 15 Destroy Leader 132 | . 30 40 10 52 Successful Hack 27 | . 5 4 18 . Select Force Hacks 60 | . . . . 60 Disable Machine 90 | . 15 . 45 30 Anti-Garrison Action 150 | . . . 150 . Destroy Structure 17 | . 5 . . 12 Partial Spotted 15 | . . 15 . . Lose Combat Pursuer 135 | . 15 15 . 105 Influence Decreases 1089 | . 184 165 153 587 Entered New Map 146 | . . 18 35 93 Time Decay 863 | . 184 127 118 434 Lost Part 80 | . . 20 . 60 Squads Dispatched 10 | . 1 . 2 7 Investigation 3 | . . . . 3 Extermination 3 | . . . . 3 Reinforcement 2 | . 1 . . 1 Assault 2 | . . . 2 . Garrison . | . . . . . Intercept . | . . . . . Searches Triggered . | . . . . . Construction Impeded 1 | . . . . 1 Haulers Reinforced . | . . . . . Active Scanning Responses . | . . . . . Cargo Convoy Interrupts . | . . . . . Stealth | -11 -10 -9 -8 -7 --------- Run | Yrd Mat Mat Mat Fac Distress Signals . | . . . . . Communications Jammed . | . . . . . Distress Signals . | . . . . . Times Spotted 42 | . 11 8 3 20 Peak Tracking Total 7 | . 4 4 1 7 Tactical Retreats 4 | . 1 1 . 2 Traps | -11 -10 -9 -8 -7 ------- Run | Yrd Mat Mat Mat Fac Traps Triggered 4 | . 3 . . 1 Indirectly . | . . . . . Trap Hack Attempts . | . . . . . Triggered . | . . . . . Disarmed . | . . . . . Reprogrammed . | . . . . . Reused . | . . . . . Traps Extracted . | . . . . . Installed . | . . . . . Triggered . | . . . . . Machines | -11 -10 -9 -8 -7 ---------- Run | Yrd Mat Mat Mat Fac Machines Disabled 7 | . 1 . 4 2 Max in Single Turn 1 | . 1 . 1 1 Garrison Access 1 | . . . 1 . Machines Repaired . | . . . . . Machines Dismantled . | . . . . . Machines Sabotaged . | . . . . . Overloaded Fab Kills . | . . . . . Hacking | -11 -10 -9 -8 -7 --------- Run | Yrd Mat Mat Mat Fac Machines Accessed 10 | . 1 3 2 4 Terminals 5 | . 1 2 2 . Fabricators 1 | . . . . 1 Repair Stations . | . . . . . Recycling Units 3 | . . . . 3 Scanalyzers 1 | . . 1 . . Garrison Access . | . . . . . Total Hacks 30 | . 1 17 5 7 Successful 20 | . 1 12 4 3 Failed 10 | . . 5 1 4 Catastrophic 1 | . . 1 . . Database Lockouts . | . . . . . Manual 6 | . . 1 . 5 Terminals 10 | . 1 4 5 . Fabricators 1 | . . . . 1 Repair Stations . | . . . . . Recycling Units 6 | . . . . 6 Scanalyzers 13 | . . 13 . . Garrison Access . | . . . . . Terminal Hacks 6 | . 1 1 4 . Prototype ID Bank 1 | . . 1 . . Locate Traps 2 | . . . 2 . Transport Status 1 | . . . 1 . Investigation Status 1 | . 1 . . . Hauler Manifests 1 | . . . 1 . Fabricator Hacks . | . . . . . Repair Station Hacks . | . . . . . Recycling Unit Hacks 1 | . . . . 1 Retrieve Matter 1 | . . . . 1 Scanalyzer 11 | . . 11 . . Insert Component 6 | . . 6 . . Analyze 5 | . . 5 . . Garrison Access Hacks . | . . . . . Unauthorized Hacks 2 | . . . . 2 Terminals . | . . . . . Fabricators . | . . . . . Repair Stations . | . . . . . Recycling Units 2 | . . . . 2 Tunnel 2 | . . . . 2 Scanalyzers . | . . . . . Garrison Access . | . . . . . Data Cores Recovered . | . . . . . Used . | . . . . . Hacking Detections 6 | . 1 3 1 1 Full Trace Events 2 | . . 1 . 1 Feedback Events . | . . . . . Feedback Blocked . | . . . . . Robot Schematics Acquired . | . . . . . Robots Built . | . . . . . Authchips . | . . . . . Time . | . . . . . Total Robot Build Rating . | . . . . . Part Schematics Acquired 5 | . . 5 . . Parts Built . | . . . . . Authchips . | . . . . . Time . | . . . . . Total Part Build Rating . | . . . . . Parts Repaired . | . . . . . Time . | . . . . . Parts Recycled . | . . . . . Recycled Matter . | . . . . . Retrieved Matter . | . . . . . Retrieved Components . | . . . . . Parts Scanalyzed 5 | . . 5 . . Part Schematics Acquired 5 | . . 5 . . Parts Damaged . | . . . . . Bothacking | -11 -10 -9 -8 -7 ------------ Run | Yrd Mat Mat Mat Fac Used RIF Installer . | . . . . . Robots Hacked . | . . . . . Non-combat . | . . . . . Combat . | . . . . . Robot Hacks Applied . | . . . . . Relay Couplers Released 2 | . . . 2 . Machine Destruction 2 | . . . 2 . Fabnet Peak Effective % . | . . . . . Robots Rewired . | . . . . . Allies Hacked . | . . . . . Hacks Repelled . | . . . . . Allies | -11 -10 -9 -8 -7 -------- Run | Yrd Mat Mat Mat Fac Total Allies . | . . . . . Largest Group . | . . . . . Highest-Rated Group . | . . . . . Highest-Rated Ally . | . . . . . Total Orders . | . . . . . Ally Attacks . | . . . . . Total Damage . | . . . . . Kills . | . . . . . Allies Corrupted . | . . . . . Allies Melted . | . . . . . Intel | -11 -10 -9 -8 -7 ------- Run | Yrd Mat Mat Mat Fac Active Infowar (turns) 1344 | . . . 266 1078 Optics 1344 | . . . 266 1078 Robot Analysis Total . | . . . . . Derelict Logs Recovered . | . . . . . Drone Launches . | . . . . . Drone Recoveries . | . . . . . Exploration | -11 -10 -9 -8 -7 ------------- Run | Yrd Mat Mat Mat Fac Turns Passed 2484 | 51 757 329 269 1078 Spaces Moved 1568 | 34 407 366 184 577 Core 14 | 12 2 . . . Treads 250 | 22 228 . . . Legs . | . . . . . Wheels . | . . . . . Hover 1304 | . 177 366 184 577 Flight . | . . . . . Fastest Speed 48 | 50 56 56 52 48 Average Speed 86 | 121 127 56 52 86 Slowest Speed 250 | 160 250 116 112 180 Overloaded Moves . | . . . . . Propulsion Burnouts . | . . . . . Robots Hopped . | . . . . . Potential Cave-ins . | . . . . . Cave-ins Triggered . | . . . . . Exploration Rate (%) 20 | 3 40 28 17 16 Regions Visited 4 Branch Regions . Pre-discovered Areas 2 | . . . . 2 Known Exits Taken . | . . . . . Unknown Exits Taken 4 | 1 1 1 1 . Scrap Searched . | . . . . . Spaces Dug . | . . . . . Terrain Destroyed 14 | . 3 . . 11 Melee . | . . . . . Projectile . | . . . . . AOE 14 | . 3 . . 11 Terrain Rammed . | . . . . . Walls Destroyed . | . . . . . Machines Disabled . | . . . . . Actions | -11 -10 -9 -8 -7 --------- Run | Yrd Mat Mat Mat Fac Total 2510 | 42 579 461 330 1098 Wait 684 | 1 78 35 105 465 Move 1564 | 33 406 365 183 577 Hop . | . . . . . Pick Up 33 | 2 18 9 2 2 Fast Attach 24 | 4 7 4 3 6 Attach 22 | 2 2 6 8 4 Detach 16 | . 1 5 7 3 Swap 12 | . 2 3 2 5 Drop 42 | . 17 15 4 6 Fire 112 | . 48 19 16 29 Melee . | . . . . . Ram 1 | . . . . 1 Kick . | . . . . . Crush . | . . . . . Escape Stasis . | . . . . . Rewire . | . . . . . Trap . | . . . . . Miscellaneous . | . . . . . Route ------- -11/Scrapyard -10/Materials (discovered 2 exits: *Mat / [*Min]) -9/Materials -8/Materials -7/Factory History --------- Turn | Location | Event 22 | -11/Scrapyard | Discovered new exit (range 16) 52 | -11/Scrapyard | Entered Materials 53 | -10/Materials | Met a group of wandering Federalists 305 | -10/Materials | Build established: Mutant 659 | -10/Materials | Discovered new exit (range 13) 659 | -10/Materials | Discovered new exit (range 10) 809 | -10/Materials | Entered another Materials area 809 | -9/Materials | Evolved 2 slots: Utility x2 1055 | -9/Materials | Discovered new exit (range 14) 1138 | -9/Materials | Entered another Materials area 1138 | -8/Materials | Evolved 2 slots: Propulsion x1, Utility x1 1386 | -8/Materials | Discovered new exit (range 7) 1407 | -8/Materials | Entered Factory 1407 | -7/Factory | Evolved 2 slots: Power x1, Propulsion x1 2485 | -7/Factory | Self-destructed Last Messages --------------- 02381_ R-06 Scavenger collects Targeting Computer. 02404_ Hover Unit destroyed. 02406_ Imp. Deuterium Engine destroyed. 02406_ G-47 Trooper destroyed. 02411_ U-05 Engineer builds a Door. 02416_ R-06 Scavenger collects Imp. Heat Sink. 02418_ K-01 Serf cleans the Assembly Bed. 02422_ KT%PZ=KXCJY=MICBAL27R0U ||U<3ZA 1QTU&0H 02423_ K-01 Serf cleans the Assembly Bed. 02428_ K-01 Serf cleans the Fabricator. 02433_ Connecting with Fabricator... 02434_ ALERT: Potential suspicious activity detected, Programmers report to Factory Zone 9X. 02435_ K-01 Serf cleans the Assembly Bed. 02443_ K-01 Serf cleans the Fabricator. 02452_ Slammed into K-01 Serf. 02463_ System corrupted: Matter fused (-9). 02474_ T-07 Excavator destroyed. 02476_ K-01 Serf collects debris. 02477_ Pulse Rifle destroyed. 02480_ K-01 Serf collects debris. Map ----- +----------------------------------------------------+ | ?????????????????????????????????????????????????? | | ?????????????????????????????????????????????????? | | ?????????????????????????????????????????????????? | | ?????????????????????????????????????????????????? | | ?????????????????????????????????????????????????? | | ?????????????????????????????????????????????????? | | ?????????????????????????????????????????????????? | | ?????????????????????????????????????????????????? | | ?????????????????????????????????????????????????? | | ?????????????????????????????????????????????????? | | ?????????????????????????????????????????????????? | | ?????????????????????????????????????????????????? | | ?????????????????????????????????????????????????? | | ?????????????????????????????????????????????????? | | ?????????????????????????????????????????????????? | | ?????????????????????????????????????????????????? | | ????????????????????????????????????? ?????????? | | ""?????????????????????????????????? ?????????? | | ???##+###??###############+##### #????????? | | """ ? #????????? | | """ ? ?????????? | | """ ? ??? ????????????? | | ? ??? ???? ??????????????? | | ????? ???? ????? ?????????????????? | | ?#######+######+######## #???????????????????? | | ?# # # @ #???????????????????? | | ?# #= """ #t #???????????????????? | | ?# """" """ # """ # #???????????????????? | | ?# """" "" # %""" # #???????????????????? | | ?# """" "" =+ # #???????????????????? | | ?# """ "" %]# ]! # u#???????????????????? | | ?# """" "" *%# # #???????????????????? | | ## """" "" # # #?????##????????????? | | + """" "" # r #???? #????????????? | | # # ######=k #???? [#????????????? | | # # #????#%! u#??? #????????????? | | + ### #????#!| #??? ##???????????? | | ############+#########?# #?? #???????????? | | ????# #?# k #?? #????????????? | | ????# #?# #?!!* ###########??? | | ????# #?# Y #?!! # #??? | | ????# """""" ! #?# # !! # """ #??? | | ????# """""" #?# %# # """"" #??? | | ##### """""" ] " " #?# + # """"" #??? | | ## """""" "Y" #?# # # #??? | | " ## """ #?# # # #??? | | " ## ### ######## #??? | | " ##############+#### #????# % #??? | | # ##########+######## | | " # | +----------------------------------------------------+ Best States ------------- Heat Dissipation 48 Energy Generation 26 Energy Capacity 350 Matter Stores 300 Matter Capacity 300 Sight Range 18 Terrain Scan Density 10 Utility Shielding 33 Evasion (%) 55 Targeting Accuracy 5 Recoil Reduction 2 Item Schematics ----------------- Utility Shielding | -9/Materials | Scanalyzed Visual Processing Unit | -9/Materials | Scanalyzed Hover Unit | -9/Materials | Scanalyzed EM Pulse Gun | -9/Materials | Scanalyzed VTOL Module | -9/Materials | Scanalyzed Robot Schematics ------------------ None Fabricated ------------ Nothing Repaired ---------- Nothing Alien Tech Used ----------------- None Achievements -------------- Brute Force Party Time Challenges ------------ None Game ------ Seed CompactPhaseSaw Manual? 0 Play Time 00:31:34 Cumulative 18.6 hours Start 2025.10.20 @ 00:27:27 End 2025.10.20 @ 20:14:46 Sessions 2 Manual Loads 0 Difficulty Rogue Special Mode None Game No. 37 Rogue 37 Adventurer 0 Explorer 0 Win Type - Total 0 Types 0/0/0/0/0/0/0/0/0/0 Lore% 5 Gallery% 21 Achievement% 21 Wizard Run 0 Options --------- Layout 0 ASCII 0 Keyboard 1 Movement Numpad Keybinds 0 Fullscreen 2 Font 20/Terminus Map View 96x60 Zoom Use 0% Tactical HUD 1 Map Filters NONE Filters NONE Steam 1 RUN: ade25c49-0165-48dc-a24a-34d09dd1aac5